bitfinex/quotes_BTCUSD_20241110
["timestamp","ask_amount","ask_price","bid_price","bid_amount"]
[1731261104953,3.87920559,80378.0,80377.0,3.52538051]
[1731261105127,3.87920559,80378.0,80377.0,3.53038051]
[1731261105333,3.72932359,80378.0,80377.0,5.89260951]
[1731261105740,3.69119899,80378.0,80377.0,5.79260951]
[1731261106039,3.68918934,80378.0,80377.0,5.6724779]
[1731261106445,3.66398934,80378.0,80377.0,5.6724779]
[1731261106651,3.59538934,80378.0,80377.0,5.6724779]
[1731261107476,3.55087118,80378.0,80377.0,5.81280984]
[1731261107654,3.51077118,80378.0,80377.0,5.7724779]
[1731261107867,3.51077118,80378.0,80377.0,5.7734779]
[1731261108074,3.14314214,80378.0,80377.0,5.7724779]
[1731261108221,3.12245483,80378.0,80377.0,5.7684779]
[1731261108634,3.12222113,80378.0,80377.0,5.7724779]
[1731261108833,3.12216113,80378.0,80377.0,5.7724779]
[1731261109037,3.12852037,80378.0,80377.0,5.7724779]
[1731261109270,3.10712037,80378.0,80377.0,3.86694352]
[1731261109494,3.10712037,80378.0,80377.0,3.8397869]
[1731261109676,2.85006037,80378.0,80377.0,3.8397869]
[1731261109823,2.85006037,80378.0,80377.0,3.8347869]
[1731261110017,2.85006037,80378.0,80377.0,3.8397869]
[1731261110333,2.85006037,80378.0,80377.0,3.8347869]
[1731261110541,2.84784258,80378.0,80377.0,3.75600226]
[1731261110758,2.7464821,80378.0,80377.0,6.1510332]
[1731261110959,2.7464821,80378.0,80377.0,6.11823126]
[1731261111162,2.7464221,80378.0,80377.0,6.12323126]
[1731261111367,2.7223221,80378.0,80377.0,6.12323126]
[1731261111570,2.7223221,80378.0,80377.0,6.21823126]
[1731261111786,0.3558221,80378.0,80377.0,6.21823126]
[1731261112117,0.25350286,80378.0,80377.0,6.21823126]
[1731261112285,0.24055218,80378.0,80377.0,6.21823126]
[1731261112495,0.19259298,80378.0,80377.0,6.21823126]
[1731261112868,0.19253298,80378.0,80377.0,6.21823126]
[1731261113051,0.19129778,80378.0,80377.0,6.21823126]
[1731261113276,0.19129778,80378.0,80377.0,6.22323126]
[1731261113482,0.19129778,80378.0,80377.0,6.11823126]
[1731261113685,0.19123778,80378.0,80377.0,6.11823126]
[1731261113885,0.19123778,80378.0,80377.0,6.12323126]
[1731261114181,0.19123778,80378.0,80377.0,6.11823126]
[1731261114551,0.19117778,80378.0,80377.0,6.11823126]
[1731261115186,0.19117778,80378.0,80377.0,6.21823126]
[1731261115385,0.18896126,80378.0,80377.0,6.21823126]
[1731261115777,0.18711634,80378.0,80377.0,6.21823126]
[1731261116026,0.18646634,80378.0,80377.0,6.21923126]
[1731261116230,0.18640634,80378.0,80377.0,6.21423126]
[1731261116362,0.07131684,80378.0,80377.0,6.21591126]
[1731261116563,0.07131684,80378.0,80377.0,6.21991126]
[1731261117123,0.07131684,80378.0,80377.0,6.22091126]
[1731261117271,0.07131684,80378.0,80377.0,6.22491126]
[1731261117471,5.3817049,80388.0,80387.0,0.08104753]
[1731261117693,5.3817049,80388.0,80387.0,7.67543055]
[1731261117918,5.20180272,80388.0,80387.0,8.04242955]
[1731261118170,5.20180272,80388.0,80387.0,7.87132795]
[1731261118345,5.20180272,80388.0,80387.0,8.67132795]
[1731261118567,5.20088815,80388.0,80387.0,8.67132795]
[1731261118746,5.20912653,80388.0,80387.0,8.67132795]
[1731261118948,5.20912653,80388.0,80387.0,8.57632795]
[1731261119178,5.20695759,80388.0,80387.0,6.10476295]
[1731261119389,5.1628108,80388.0,80387.0,6.10976295]
[1731261119723,5.16888018,80388.0,80387.0,6.10476295]
[1731261119885,5.16888018,80388.0,80387.0,5.84672195]
[1731261120087,5.16888018,80388.0,80387.0,5.48972195]
[1731261120309,5.1628108,80388.0,80387.0,5.48572195]
[1731261120519,5.1628108,80388.0,80387.0,5.49472195]
[1731261120756,5.16888018,80388.0,80387.0,3.60845795]
[1731261120970,5.1628108,80388.0,80387.0,3.85215795]
[1731261121179,5.16888018,80388.0,80387.0,4.10585795]
[1731261121390,5.16888018,80388.0,80387.0,4.11085795]
[1731261121604,5.1628108,80388.0,80387.0,4.10585795]
[1731261122079,5.1628108,80388.0,80387.0,4.04010095]
[1731261122287,5.1628108,80388.0,80387.0,3.56521813]
[1731261122498,5.1628108,80388.0,80387.0,3.56121813]
[1731261122717,5.1628108,80388.0,80387.0,3.57021813]
[1731261122946,5.1628108,80388.0,80387.0,4.40088413]
[1731261123241,5.1628108,80388.0,80387.0,4.26825213]
[1731261123817,5.1627508,80388.0,80387.0,4.24215613]
[1731261124028,5.1627508,80388.0,80387.0,3.95213913]
[1731261124233,5.1627508,80388.0,80387.0,3.56521813]
[1731261124409,0.00077817,80397.0,80396.0,0.004]
[1731261124619,0.04624,80396.0,80388.0,0.06241164]
[1731261124874,0.00077817,80397.0,80396.0,0.38981398]
[1731261125201,0.00077817,80397.0,80396.0,0.58636574]
[1731261125332,0.00077817,80397.0,80396.0,1.75951574]
[1731261125782,5.30564036,80398.0,80396.0,1.51070574]
[1731261126113,0.005,80397.0,80396.0,1.51070574]
[1731261126439,0.005,80397.0,80396.0,0.68110398]
[1731261126647,0.005,80397.0,80396.0,0.64620398]
[1731261126648,0.19188212,80397.0,80396.0,0.64620398]
[1731261126847,5.29764036,80398.0,80396.0,0.79275574]
[1731261127252,5.29764036,80398.0,80397.0,0.24909529]
[1731261127451,5.23495842,80398.0,80397.0,2.06203429]
[1731261127662,5.23279998,80398.0,80397.0,2.01994129]
[1731261127864,5.23279998,80398.0,80397.0,1.83305917]
[1731261128304,5.22765998,80398.0,80397.0,1.83305917]
[1731261128505,5.22068998,80398.0,80397.0,1.92805917]
[1731261128721,5.22068998,80398.0,80397.0,1.93305917]
[1731261129174,4.92520406,80398.0,80397.0,2.47420917]
[1731261129387,4.68829285,80398.0,80397.0,2.55450917]
[1731261129624,4.41374343,80398.0,80397.0,2.55450917]
[1731261129825,4.28564343,80398.0,80397.0,2.55450917]
[1731261130057,4.02954343,80398.0,80397.0,2.54950917]
[1731261130410,3.99514343,80398.0,80397.0,2.54950917]
[1731261130600,2.57955843,80398.0,80397.0,2.54950917]
[1731261130735,0.52615743,80398.0,80397.0,2.55450917]
[1731261130926,0.52475743,80398.0,80397.0,2.55450917]
[1731261131279,0.52475743,80398.0,80397.0,2.54950917]
[1731261131482,0.52475743,80398.0,80397.0,2.55450917]
[1731261131825,0.52475743,80398.0,80397.0,2.54950917]
[1731261133235,0.52135743,80398.0,80397.0,3.54855617]
[1731261133558,0.52135743,80398.0,80397.0,3.55355617]
[1731261133761,0.51620008,80398.0,80397.0,3.54855617]
[1731261134172,0.51620008,80398.0,80397.0,3.60825941]
[1731261134372,0.48198565,80398.0,80397.0,3.41295941]
[1731261134690,0.48198565,80398.0,80397.0,2.19590841]
[1731261134875,0.23198565,80398.0,80397.0,2.27310841]
[1731261135084,0.19799939,80398.0,80397.0,2.27810841]
[1731261135331,0.13607239,80398.0,80397.0,2.27810841]
[1731261135508,0.11130139,80398.0,80397.0,2.27310841]
[1731261135707,0.09132339,80398.0,80397.0,2.27310841]
[1731261136136,0.07064539,80398.0,80397.0,2.27310841]
[1731261136334,0.00571328,80399.0,80398.0,0.02]
[1731261136529,0.00571328,80399.0,80398.0,1.53271165]
[1731261136757,0.00355631,80399.0,80398.0,2.44199165]
[1731261136958,4.91600016,80408.0,80407.0,0.08791836]
[1731261137179,4.86848902,80408.0,80407.0,3.30312046]
[1731261137406,4.86848902,80408.0,80407.0,4.20732046]
[1731261137746,4.76730865,80408.0,80407.0,4.20732046]
[1731261137950,3.27371932,80408.0,80407.0,4.440519]
[1731261138170,3.08542408,80408.0,80407.0,3.50911346]
[1731261138373,3.08542408,80408.0,80407.0,4.30911346]
[1731261138374,0.92363424,80408.0,80407.0,4.30911346]
[1731261138601,0.28088486,80408.0,80407.0,4.31411346]
[1731261138801,4.20473339,80418.0,80417.0,0.08206962]
[1731261138975,3.74190449,80418.0,80417.0,0.92436977]
[1731261139290,2.05092485,80418.0,80417.0,1.99522977]
[1731261139494,1.58210184,80418.0,80417.0,1.99022977]
[1731261139707,0.14546284,80418.0,80417.0,1.99022977]
[1731261140061,3.51573967,80429.0,80428.0,0.08216399]
[1731261140239,3.32662961,80429.0,80428.0,2.01134351]
[1731261140494,2.59619159,80429.0,80428.0,2.92034351]
[1731261140665,4.16723953,80439.0,80438.0,0.08291538]
[1731261140935,0.11227311,80439.0,80438.0,0.38913995]
[1731261141141,0.18688212,80454.0,80438.0,0.38913995]
[1731261141142,4.95022912,80449.0,80448.0,0.08279153]
[1731261141339,3.47569887,80449.0,80448.0,2.00195621]
[1731261141542,2.32858796,80449.0,80448.0,2.91077621]
[1731261141983,2.06719165,80449.0,80448.0,7.82876521]
[1731261142192,2.06719165,80449.0,80448.0,3.43786021]
[1731261142410,2.06719165,80449.0,80448.0,3.83667521]
[1731261142579,2.06719165,80449.0,80448.0,4.0405789]
[1731261142788,2.06719165,80449.0,80448.0,3.85167521]
[1731261142996,2.06719165,80449.0,80448.0,3.84667521]
[1731261143639,2.06332713,80449.0,80448.0,3.85167521]
[1731261143861,2.01888226,80449.0,80448.0,3.68427621]
[1731261144071,0.87161615,80449.0,80448.0,3.78427621]
[1731261144277,0.18688212,80481.0,80458.0,0.02]
[1731261144404,4.17947057,80459.0,80458.0,2.17889384]
[1731261144813,2.01218817,80459.0,80458.0,1.29225884]
[1731261145235,1.76823284,80459.0,80458.0,1.29225884]
[1731261145439,0.17426961,80459.0,80458.0,1.29725884]
[1731261145582,5.04648138,80470.0,80469.0,0.015]
[1731261145792,4.7755809,80470.0,80469.0,5.39858056]
[1731261145970,4.7755809,80470.0,80469.0,5.77139056]
[1731261146377,4.2755809,80470.0,80469.0,6.47639056]
[1731261146578,4.25051952,80470.0,80469.0,6.47139056]
[1731261146788,4.20912902,80470.0,80469.0,6.47639056]
[1731261147027,4.20912902,80470.0,80469.0,5.19709456]
[1731261147203,4.20820102,80470.0,80469.0,4.83702356]
[1731261147405,4.16734125,80470.0,80469.0,4.78038639]
[1731261147636,4.16734125,80470.0,80469.0,4.11435256]
[1731261147818,4.16734125,80470.0,80469.0,3.59559256]
[1731261148558,4.14734125,80470.0,80469.0,3.59559256]
[1731261149189,4.14734125,80470.0,80469.0,3.54038048]
[1731261150628,4.14734125,80470.0,80469.0,3.64038048]
[1731261151649,4.14734125,80470.0,80469.0,3.64018048]
[1731261151848,4.14294125,80470.0,80469.0,3.64018048]
[1731261152141,4.14294125,80470.0,80469.0,3.28398048]
[1731261152318,4.14794125,80470.0,80469.0,2.97009256]
[1731261152718,4.14794125,80470.0,80469.0,3.30929256]
[1731261152920,4.14878025,80470.0,80469.0,3.15019256]
[1731261153542,4.14878025,80470.0,80469.0,3.49769256]
[1731261153906,4.14872025,80470.0,80469.0,3.49769256]
[1731261154695,4.14866025,80470.0,80469.0,3.54726656]
[1731261155132,4.14366025,80470.0,80469.0,3.54726656]
[1731261155348,4.14360025,80470.0,80469.0,3.54726656]
[1731261155554,4.14360025,80470.0,80469.0,3.64726656]
[1731261156173,4.14104025,80470.0,80469.0,3.64726656]
[1731261156614,4.13888436,80470.0,80469.0,3.64726656]
[1731261157031,4.13882436,80470.0,80469.0,3.64726656]
[1731261157449,4.10064743,80470.0,80469.0,3.68238964]
[1731261157693,4.10064743,80470.0,80469.0,3.64726656]
[1731261157884,4.07676347,80470.0,80469.0,4.13755928]
[1731261158096,4.06116347,80470.0,80469.0,3.92721156]
[1731261158307,3.93306347,80470.0,80469.0,3.93221156]
[1731261158522,3.67686347,80470.0,80469.0,4.62001156]
[1731261158752,3.67460347,80470.0,80469.0,4.62001156]
[1731261159186,3.67460347,80470.0,80469.0,3.64726656]
[1731261159394,3.67460347,80470.0,80469.0,4.79718556]
[1731261159618,3.67454347,80470.0,80469.0,3.54726656]
[1731261160095,3.65054347,80470.0,80469.0,3.54726656]
[1731261160309,3.65048347,80470.0,80469.0,3.54726656]
[1731261160733,3.65048347,80470.0,80469.0,3.64726656]
[1731261161159,3.65042347,80470.0,80469.0,3.64726656]
[1731261161391,3.65542347,80470.0,80469.0,3.54726656]
[1731261161603,3.66042347,80470.0,80469.0,3.54726656]
[1731261161819,3.63142347,80470.0,80469.0,3.60691638]
[1731261162027,3.63136347,80470.0,80469.0,3.60691638]
[1731261162241,3.62736347,80470.0,80469.0,3.60691638]
[1731261162920,3.62736347,80470.0,80469.0,3.54726656]
[1731261163129,3.62736347,80470.0,80469.0,3.64726656]
[1731261163436,3.59836347,80470.0,80469.0,6.08026656]
[1731261163643,3.59836347,80470.0,80469.0,5.44526656]
[1731261163857,3.60336347,80470.0,80469.0,4.94226656]
[1731261164382,3.60336347,80470.0,80469.0,3.64726656]
[1731261164581,3.59966347,80470.0,80469.0,3.64726656]
[1731261165080,3.60466347,80470.0,80469.0,3.64726656]
[1731261165291,3.67606347,80470.0,80469.0,3.54726656]
[1731261165500,3.59736347,80470.0,80469.0,3.16306656]
[1731261165699,3.59736347,80470.0,80469.0,3.35075056]
[1731261165985,3.60236347,80470.0,80469.0,3.3269266]
[1731261166202,3.59736347,80470.0,80469.0,3.3269266]
[1731261167461,3.59736347,80470.0,80469.0,3.4269266]
[1731261167668,3.59236347,80470.0,80469.0,3.4269266]
[1731261168776,3.59236347,80470.0,80469.0,3.3269266]
[1731261168980,3.59236347,80470.0,80469.0,3.24863728]
[1731261169303,3.59236347,80470.0,80469.0,3.32646243]
[1731261169498,3.59236347,80470.0,80469.0,2.72829315]
[1731261169843,3.59236347,80470.0,80469.0,2.650468]
[1731261170726,0.005,80426.0,80425.0,0.06515044]
[1731261171042,0.01,80426.0,80425.0,0.06515044]
[1731261171245,0.005,80426.0,80425.0,0.43817044]
[1731261171444,0.005,80426.0,80425.0,0.43544043]
[1731261171672,0.005,80426.0,80425.0,0.93324043]
[1731261171874,0.005,80426.0,80425.0,1.35587243]
[1731261172340,0.01,80426.0,80425.0,1.35567243]
[1731261172551,0.005,80426.0,80425.0,2.093252]
[1731261172773,0.01,80426.0,80425.0,2.093252]
[1731261172958,0.005,80426.0,80425.0,2.093252]
[1731261173362,0.002704,80520.0,80441.0,0.002]
[1731261173502,0.20557033,80506.0,80444.0,0.18688212]
[1731261173705,0.002704,80520.0,80462.0,0.18688212]
[1731261173909,0.002704,80520.0,80471.0,0.18688212]
[1731261174132,0.002704,80520.0,80482.0,0.18688212]
[1731261174355,0.002704,80520.0,80486.0,0.18688212]
[1731261174356,0.023,80506.0,80486.0,0.18688212]
[1731261174540,0.023,80506.0,80497.0,0.18688212]
[1731261174743,0.023,80506.0,80498.0,0.06063502]
[1731261174938,0.025,80511.0,80499.0,0.18688212]
[1731261175139,0.00822527,80505.0,80501.0,0.14949367]
[1731261175359,0.023,80509.0,80503.0,0.18688212]
[1731261175566,0.12594221,80504.0,80502.0,0.37266]
[1731261175772,0.002,80510.0,80504.0,0.32643772]
[1731261175773,0.023,80507.0,80504.0,0.32643772]
[1731261176003,0.023,80505.0,80504.0,0.30575344]
[1731261176388,0.0974,80506.0,80504.0,0.41149]
[1731261176599,0.12594221,80505.0,80504.0,0.41149]
[1731261176826,0.31988397,80505.0,80504.0,0.34482234]
[1731261177051,0.31988397,80505.0,80504.0,0.15877013]
[1731261177396,0.0974,80487.0,80473.0,0.18688212]
[1731261177596,0.36181237,80505.0,80455.0,0.18688212]
[1731261177597,0.1965576,80505.0,80455.0,0.18688212]
[1731261177773,0.05355601,80486.0,80455.0,0.11707661]
[1731261177989,0.09502877,80485.0,80455.0,0.06278005]
[1731261178194,0.023,80483.0,80455.0,0.06278005]
[1731261178401,0.023,80481.0,80455.0,0.06278005]
[1731261178598,0.023,80479.0,80467.0,0.18688212]
[1731261178861,0.023,80477.0,80466.0,0.18688212]
[1731261179116,0.023,80475.0,80457.0,0.18688212]
[1731261179290,0.023,80473.0,80457.0,0.18688212]
[1731261179488,0.05355601,80480.0,80394.0,0.18688212]
[1731261179489,0.05355601,80472.0,80424.0,0.002]
[1731261179695,0.05355601,80472.0,80422.0,0.002]
[1731261179906,0.37234565,80430.0,80429.0,0.002]
[1731261180098,0.37234565,80430.0,80420.0,0.2488]
[1731261180099,0.37234565,80430.0,80428.0,0.002]
[1731261180305,0.37234565,80430.0,80429.0,0.002]
[1731261180843,0.37234533,80430.0,80429.0,0.002]
[1731261181447,0.12594221,80430.0,80429.0,0.002]
[1731261182289,0.12594221,80430.0,80427.0,0.002]
[1731261182493,0.12594221,80429.0,80422.0,0.18688212]
[1731261182726,0.12594221,80429.0,80428.0,0.002]
[1731261184023,0.01906145,80433.0,80429.0,0.002]
[1731261184181,0.01906145,80433.0,80423.0,0.00073929]
[1731261184182,0.36492513,80434.0,80433.0,0.002]
[1731261184409,0.36492513,80434.0,80433.0,0.2509]
[1731261184583,0.49086734,80434.0,80433.0,0.2509]
[1731261184971,0.49086734,80434.0,80433.0,0.2489]
[1731261185205,0.0996,80433.0,80424.0,0.18688212]
[1731261185436,0.0996,80426.0,80424.0,0.18688212]
[1731261185649,0.12594221,80425.0,80424.0,0.18888212]
[1731261185854,0.12594221,80425.0,80424.0,0.002]
[1731261186924,0.0996,80424.0,80416.0,0.18688212]
[1731261187083,0.0996,80424.0,80422.0,0.002]
[1731261187293,0.0996,80424.0,80423.0,0.002]
[1731261187504,0.22554221,80424.0,80423.0,0.002]
[1731261187698,0.43597412,80520.0,80423.0,0.002]
[1731261187699,0.1002,80491.0,80445.0,0.002]
[1731261187903,0.1002,80468.0,80467.0,0.0018]
[1731261188222,0.1002,80468.0,80467.0,0.3507]
[1731261188415,0.06393393,80468.0,80467.0,0.3489]
[1731261188616,0.06393393,80468.0,80467.0,0.3507]
[1731261188985,0.03948523,80468.0,80467.0,0.3507]
[1731261190476,0.03948523,80468.0,80467.0,1.1507]
[1731261191438,0.04032723,80468.0,80467.0,1.1507]
[1731261192128,0.00471372,80468.0,80467.0,1.1507]
[1731261192362,5.29581191,80510.0,80509.0,0.001]
[1731261192532,5.29581191,80510.0,80509.0,0.3499]
[1731261192742,5.3040639,80510.0,80509.0,0.3499]
[1731261193146,5.43000611,80510.0,80509.0,0.3499]
[1731261194805,5.3040639,80510.0,80509.0,0.3499]
[1731261196974,5.2990639,80510.0,80509.0,0.3499]
[1731261197318,5.3988639,80510.0,80509.0,0.3499]
[1731261198987,5.3988039,80510.0,80509.0,0.3499]
[1731261199494,5.52474611,80510.0,80509.0,0.3499]
[1731261199723,5.52468611,80510.0,80509.0,0.3499]
[1731261200036,5.52468611,80510.0,80509.0,0.2499]
[1731261200488,5.52468611,80510.0,80498.0,0.001]
[1731261200686,5.3986839,80510.0,80506.0,0.15898137]
[1731261200937,5.3986839,80510.0,80498.0,0.001]
[1731261201157,5.3986839,80510.0,80502.0,0.18688212]
[1731261201352,5.3986839,80510.0,80495.0,0.1412]
[1731261201353,5.3986839,80510.0,80500.0,0.18688212]
[1731261201529,5.3986239,80510.0,80500.0,0.18688212]
[1731261202167,0.0963,80506.0,80505.0,0.001]
[1731261202344,0.23039577,80506.0,80501.0,0.1]
[1731261202547,0.12594221,80502.0,80476.0,0.18688212]
[1731261202778,0.00816552,80501.0,80494.0,0.11712559]
[1731261203177,5.29057191,80510.0,80489.0,0.001]
[1731261203178,5.29051191,80510.0,80489.0,0.001]
[1731261203384,5.29051191,80510.0,80497.0,0.18688212]
[1731261203529,0.13418459,80509.0,80506.0,0.001]
[1731261203735,0.12594221,80508.0,80507.0,0.1414]
[1731261204066,0.13411498,80508.0,80507.0,0.1414]
[1731261204777,0.13411498,80508.0,80485.0,0.1179425]
[1731261204952,0.12594221,80498.0,80497.0,0.18688212]
[1731261205169,0.13408771,80498.0,80485.0,0.2309425]
[1731261205370,0.13408771,80498.0,80494.0,0.18688212]
[1731261205371,0.0081455,80498.0,80494.0,0.18688212]
[1731261205611,5.29051191,80510.0,80485.0,0.2309425]
[1731261206020,0.12594221,80497.0,80485.0,0.2309425]
[1731261206224,0.12594221,80487.0,80486.0,0.18688212]
[1731261206590,0.12594221,80487.0,80486.0,0.28788212]
[1731261206795,0.12594221,80487.0,80486.0,0.1]
[1731261207008,0.12594221,80487.0,80486.0,0.101]
[1731261207749,0.12594221,80487.0,80486.0,0.1]
[1731261208179,0.0912,80486.0,80485.0,0.0241562]
[1731261208351,0.21714221,80486.0,80485.0,0.0241562]
[1731261209147,0.21714221,80486.0,80474.0,0.1]
[1731261209356,0.0982,80483.0,80474.0,0.1]
[1731261209558,0.0982,80481.0,80474.0,0.1]
[1731261209774,0.12594221,80475.0,80465.0,0.001]
[1731261209946,0.18688212,80509.0,80459.0,0.2488]
[1731261209947,0.0982,80474.0,80460.0,0.001]
[1731261210533,0.0982,80474.0,80468.0,0.001]
[1731261210764,0.0982,80474.0,80464.0,0.001]
[1731261211001,0.0982,80474.0,80460.0,0.101]
[1731261212084,0.0982,80474.0,80473.0,0.001]
[1731261212300,0.0982,80474.0,80460.0,0.1]
[1731261212301,0.22414221,80474.0,80467.0,0.001]
[1731261212515,0.18688212,80499.0,80464.0,0.001]
[1731261212516,0.0994,80472.0,80464.0,0.001]
[1731261212682,0.0994,80472.0,80471.0,0.1]
[1731261213099,0.0994,80472.0,80471.0,0.101]
[1731261213479,0.0994,80472.0,80471.0,0.1]
[1731261213702,0.0994,80472.0,80468.0,0.001]
[1731261213703,0.22534221,80472.0,80468.0,0.001]
[1731261213903,0.0994,80470.0,80464.0,0.001]
[1731261214297,0.12594221,80469.0,80468.0,0.001]
[1731261215107,0.07594221,80469.0,80468.0,0.001]
[1731261215828,0.07594221,80469.0,80467.0,0.001]
[1731261216045,0.18688212,80490.0,80467.0,0.001]
[1731261216046,0.12594221,80468.0,80467.0,0.001]
[1731261217314,0.000841,80485.0,80468.0,0.001]
[1731261217520,0.18688212,80484.0,80470.0,0.22164584]
[1731261217671,0.000841,80485.0,80476.0,0.1]
[1731261217870,0.000841,80485.0,80478.0,0.1]
[1731261218160,0.000841,80485.0,80484.0,0.001]
[1731261218371,0.000841,80485.0,80484.0,0.21287061]
[1731261218487,0.000841,80485.0,80484.0,0.3362747]
[1731261218711,0.000841,80485.0,80484.0,0.33557061]
[1731261219323,0.000841,80485.0,80484.0,1.13557061]
[1731261219729,0.000841,80485.0,80484.0,1.13537061]
[1731261220161,5.29051191,80510.0,80509.0,0.0008]
[1731261220335,5.29051191,80510.0,80509.0,0.3496]
[1731261220724,5.29870587,80510.0,80509.0,0.45954152]
[1731261220955,5.29870587,80510.0,80509.0,0.50524152]
[1731261221192,5.29870587,80510.0,80509.0,0.58224152]
[1731261221889,5.29870587,80510.0,80509.0,0.4723]
[1731261222349,5.29870587,80510.0,80509.0,0.58224152]
[1731261222554,5.29870587,80510.0,80509.0,0.70352144]
[1731261222779,5.28590587,80510.0,80509.0,0.70352144]
[1731261222984,5.28220587,80510.0,80509.0,0.59354003]
[1731261223197,5.25092938,80510.0,80509.0,0.58224152]
[1731261223408,5.25092938,80510.0,80509.0,1.38424152]
[1731261223409,5.23236082,80510.0,80509.0,1.38424152]
[1731261223626,5.23236082,80510.0,80509.0,1.38224152]
[1731261224245,5.23236082,80510.0,80509.0,1.2723]
[1731261224670,5.23236082,80510.0,80509.0,0.4723]
[1731261225298,5.23236082,80510.0,80509.0,0.76912364]
[1731261225498,5.23236082,80510.0,80509.0,0.58224152]
[1731261225699,5.23236082,80510.0,80509.0,0.4723]
[1731261226436,5.23236082,80510.0,80509.0,1.2723]
[1731261226879,5.23236082,80510.0,80509.0,1.38224152]
[1731261227399,5.23236082,80510.0,80509.0,0.58224152]
[1731261227818,5.23236082,80510.0,80509.0,0.4723]
[1731261229020,5.23236082,80510.0,80509.0,0.58224152]
[1731261229431,5.22416686,80510.0,80509.0,1.38224152]
[1731261229645,5.22416686,80510.0,80509.0,1.38392352]
[1731261229862,5.22500786,80510.0,80509.0,1.38392352]
[1731261230621,5.22500786,80510.0,80509.0,1.38592352]
[1731261231436,5.22500786,80510.0,80509.0,1.38392352]
[1731261231636,5.22500786,80510.0,80509.0,1.28392352]
[1731261232299,5.22500786,80510.0,80509.0,1.173982]
[1731261232517,5.22500786,80510.0,80509.0,0.373982]
[1731261233327,5.22500786,80510.0,80509.0,0.48592352]
[1731261233540,4.96880786,80510.0,80509.0,1.39092352]
[1731261233744,4.71260786,80510.0,80509.0,1.39592352]
[1731261234628,4.71260786,80510.0,80509.0,1.39092352]
[1731261234795,4.71260786,80510.0,80509.0,1.39592352]
[1731261234976,4.71260786,80510.0,80509.0,1.39092352]
[1731261236149,4.69453608,80510.0,80509.0,1.34522352]
[1731261236754,4.69453608,80510.0,80509.0,1.16622352]
[1731261236993,4.69453608,80510.0,80509.0,1.16122352]
[1731261237128,4.69453608,80510.0,80509.0,1.16042352]
[1731261237325,4.69453608,80510.0,80509.0,1.16122352]
[1731261238163,4.69453608,80510.0,80509.0,1.16042352]
[1731261238367,4.69453608,80510.0,80509.0,1.16122352]
[1731261238679,4.69453608,80510.0,80509.0,1.151282]
[1731261239258,4.69453608,80510.0,80509.0,1.26122352]
[1731261239466,4.69453608,80510.0,80509.0,0.46122352]
[1731261240518,4.69453608,80510.0,80509.0,1.26122352]
[1731261240993,4.69453608,80510.0,80509.0,1.01242352]
[1731261241202,4.69453608,80510.0,80509.0,1.51392352]
[1731261241410,4.69453608,80510.0,80509.0,1.51592352]
[1731261243108,4.69453608,80510.0,80509.0,1.51392352]
[1731261243482,4.68953608,80510.0,80509.0,1.51392352]
[1731261243917,4.68953608,80510.0,80509.0,1.298982]
[1731261244357,4.68953608,80510.0,80509.0,0.498982]
[1731261244900,4.67655608,80510.0,80509.0,0.498182]
[1731261245098,4.67655608,80510.0,80509.0,0.498982]
[1731261245313,4.67655608,80510.0,80509.0,0.598982]
[1731261246769,4.67655608,80510.0,80509.0,0.71392352]
[1731261246975,4.67655608,80510.0,80509.0,0.70892352]
[1731261247335,4.67655608,80510.0,80509.0,0.71392352]
[1731261247584,4.67655608,80510.0,80509.0,0.74744093]
[1731261248050,4.67655608,80510.0,80509.0,0.74244093]
[1731261248264,4.62224686,80510.0,80509.0,0.74244093]
[1731261248432,4.61538144,80510.0,80509.0,0.93432305]
[1731261248666,4.61538144,80510.0,80509.0,0.74944093]
[1731261248896,4.56755193,80510.0,80509.0,0.74744093]
[1731261249085,4.56088821,80510.0,80509.0,0.74744093]
[1731261249494,4.51088821,80510.0,80509.0,1.54744093]
[1731261249789,3.48237286,80510.0,80509.0,1.54744093]
[1731261250034,3.48237286,80510.0,80509.0,1.55244093]
[1731261250252,3.48237286,80510.0,80509.0,1.54404362]
[1731261250380,3.48237286,80510.0,80509.0,0.74404362]
[1731261250840,3.47881065,80510.0,80509.0,0.74404362]
[1731261250990,3.47881065,80510.0,80509.0,0.6341021]
[1731261251408,3.47881065,80510.0,80509.0,1.4341021]
[1731261251608,3.47881065,80510.0,80509.0,1.4291021]
[1731261251809,3.47881065,80510.0,80509.0,1.3291021]
[1731261252471,3.47881065,80510.0,80509.0,0.5291021]
[1731261253029,3.55681065,80510.0,80509.0,0.49478469]
[1731261253247,3.68275286,80510.0,80509.0,0.24738469]
[1731261253457,3.68275286,80510.0,80509.0,0.19738469]
[1731261253674,3.68275286,80510.0,80509.0,0.12096669]
[1731261253845,3.68275286,80510.0,80509.0,0.002482]
[1731261254241,3.68275286,80510.0,80495.0,0.18688212]
[1731261254443,0.12594221,80509.0,80495.0,0.18688212]
[1731261254640,0.12594221,80509.0,80496.0,0.1]
[1731261255236,3.55681065,80510.0,80492.0,0.1]
[1731261255237,0.12594221,80507.0,80492.0,0.1]
[1731261255494,0.12594221,80507.0,80495.0,0.1]
[1731261255819,0.18688212,80500.0,80466.0,0.8]
[1731261256020,0.12594221,80503.0,80466.0,0.8]
[1731261256021,0.00775131,80499.0,80466.0,0.8]
[1731261256295,0.24389977,80477.0,80466.0,0.8]
[1731261256506,0.24389977,80477.0,80460.0,0.005]
[1731261256808,0.24351496,80488.0,80460.0,0.005]
[1731261257389,0.24351496,80488.0,80453.0,0.2487]
[1731261257390,0.005,80481.0,80453.0,0.2487]
[1731261257858,0.005,80487.0,80457.0,0.00248523]
[1731261258085,0.24351496,80488.0,80457.0,0.00448523]
[1731261258319,0.2433202,80497.0,80457.0,0.00448523]
[1731261258523,0.2433202,80497.0,80479.0,0.102]
[1731261258524,0.18688212,80492.0,80479.0,0.102]
[1731261258696,0.18688212,80492.0,80481.0,0.1]
[1731261258912,0.2433202,80497.0,80483.0,0.1]
[1731261259140,0.18688212,80492.0,80485.0,0.1]
[1731261259392,0.2423202,80497.0,80485.0,0.1]
[1731261259580,0.2397202,80497.0,80487.0,0.1]
[1731261259782,0.2397202,80497.0,80488.0,0.00071275]
[1731261259913,0.2397202,80497.0,80487.0,0.33404583]
[1731261260117,0.18688212,80509.0,80490.0,0.12125407]
[1731261260329,0.12594221,80508.0,80489.0,0.1]
[1731261260528,0.005,80504.0,80489.0,0.1]
[1731261260744,0.12594221,80503.0,80491.0,0.1]
[1731261261142,0.12594221,80503.0,80493.0,0.1]
[1731261261900,0.12594221,80503.0,80495.0,0.1]
[1731261262241,0.18688212,80509.0,80495.0,0.1]
[1731261262454,3.60475286,80510.0,80497.0,0.1]